fUSD/lending_fUSD_20260409
["ID","MTS","AMOUNT","RATE_DAILY","PERIOD"]
[420157032,1775735458749,-151.0,0.00015,2]
[420157033,1775735458759,-152.375375,0.00015,2]
[420157034,1775735458769,-1043.616451,0.00015,2]
[420157035,1775735458778,-804.866183,0.00015,2]
[420157036,1775735458788,-151.0,0.00015,2]
[420157037,1775735458798,-1043.616451,0.00015,2]
[420157038,1775735458807,-151.0,0.00015,2]
[420157039,1775735458817,-804.866183,0.00015,2]
[420157040,1775735458828,-151.0,0.00015,2]
[420157041,1775735458838,-1043.616451,0.00015,2]
[420157042,1775735458849,-804.866183,0.00015,2]
[420157043,1775735458859,-1043.616451,0.00015,2]
[420157044,1775735458870,-804.866183,0.00015,2]
[420157045,1775735458880,-151.0,0.00015,2]
[420157046,1775735458890,-151.0,0.00015,2]
[420157047,1775735458900,-382.637335,0.00015,2]
[420157048,1775735458910,-151.0,0.00015,2]
[420157049,1775735458920,-151.0,0.00015,2]
[420157050,1775735458930,-382.637335,0.00015,2]
[420157051,1775735458940,-382.637335,0.00015,2]
[420157052,1775735458950,-151.0,0.00015,2]
[420157053,1775735458959,-623.023197,0.00015,2]
[420157054,1775735458969,-382.637335,0.00015,2]
[420157055,1775735458979,-623.023197,0.00015,2]
[420157056,1775735458990,-619.659745,0.00015,2]
[420157057,1775735459000,-623.023197,0.00015,2]
[420157058,1775735459010,-295.777885,0.00015,2]
[420157059,1775735459020,-623.023197,0.00015,2]
[420157060,1775735459030,-619.659745,0.00015,2]
[420157061,1775735459039,-295.777885,0.00015,2]
[420157062,1775735459049,-451.481934,0.00015,2]
[420157063,1775735459059,-151.0,0.00015,2]
[420157064,1775735459068,-619.659745,0.00015,2]
[420157065,1775735459078,-295.777885,0.00015,2]
[420157066,1775735459088,-451.481934,0.00015,2]
[420157067,1775735459098,-151.0,0.00015,2]
[420157068,1775735459108,-619.659745,0.00015,2]
[420157069,1775735459118,-295.777885,0.00015,2]
[420157070,1775735459127,-451.481934,0.00015,2]
[420157071,1775735459137,-209.506468,0.00015,2]
[420157072,1775735459147,-451.481934,0.00015,2]
[420157073,1775735459156,-1256.584761,0.00015,2]
[420157074,1775735459165,-1256.584761,0.00015,2]
[420157075,1775735459176,-151.0,0.00015,2]
[420157076,1775735459186,-167.506358,0.00015,2]
[420157077,1775735459196,-1256.584761,0.00015,2]
[420157078,1775735459206,-1256.584761,0.00015,2]
[420157079,1775735459215,-152.441257,0.00015,2]
[420157080,1775735459224,-152.441257,0.00015,2]
[420157081,1775735459233,-152.441257,0.00015,2]
[420157082,1775735459243,-398.260781,0.00015,2]
[420157083,1775735459252,-588.287141,0.00015,2]
[420157084,1775735459262,-152.441257,0.00015,2]
[420157085,1775735459272,-398.260781,0.00015,2]
[420157086,1775735459282,-151.0,0.00015,2]
[420157087,1775735459292,-588.287141,0.00015,2]
[420157088,1775735459302,-151.0,0.00015,2]
[420157089,1775735459312,-398.260781,0.00015,2]
[420157090,1775735459321,-151.0,0.00015,2]
[420157091,1775735459331,-151.0,0.00015,2]
[420157092,1775735459340,-1195.981713,0.00015,2]
[420157093,1775735459350,-588.287141,0.00015,2]
[420157094,1775735459360,-151.0,0.00015,2]
[420157095,1775735459369,-398.260781,0.00015,2]
[420157096,1775735459379,-151.0,0.00015,2]
[420157097,1775735459389,-151.0,0.00015,2]
[420157098,1775735459398,-151.0,0.00015,2]
[420157099,1775735459409,-1593.187778,0.00015,2]
[420157100,1775735459419,-1195.981713,0.00015,2]
[420157101,1775735459428,-151.0,0.00015,2]
[420157102,1775735459437,-588.287141,0.00015,2]
[420157103,1775735459447,-151.0,0.00015,2]
[420157104,1775735459456,-151.0,0.00015,2]
[420157105,1775735459466,-163.226364,0.00015,2]
[420157106,1775735459475,-1593.187778,0.00015,2]
[420157107,1775735459485,-1195.981713,0.00015,2]
[420157108,1775735459494,-151.0,0.00015,2]
[420157109,1775735459505,-151.0,0.00015,2]
[420157110,1775735459514,-1593.187778,0.00015,2]
[420157111,1775735459524,-151.0,0.00015,2]
[420157112,1775735459533,-151.0,0.00015,2]
[420157113,1775735459543,-1195.981713,0.00015,2]
[420157114,1775735459552,-151.0,0.00015,2]
[420157115,1775735459563,-192.515506,0.00015,2]
[420157116,1775735459572,-1390.992094,0.00015,2]
[420157117,1775735459582,-151.0,0.00015,2]
[420157118,1775735459591,-1593.187778,0.00015,2]
[420157119,1775735459600,-151.0,0.00015,2]
[420157120,1775735459610,-151.0,0.00015,2]
[420157121,1775735459621,-172.314368,0.00015,2]
[420157122,1775735459630,-151.0,0.00015,2]
[420157123,1775735459640,-192.515506,0.00015,2]
[420157124,1775735459649,-1390.992094,0.00015,2]
[420157125,1775735459658,-151.0,0.00015,2]
[420157126,1775735459668,-248.573322,0.00015,2]
[420157127,1775735459678,-151.0,0.00015,2]
[420157128,1775735459688,-172.314368,0.00015,2]
[420157129,1775735459697,-192.515506,0.00015,2]
[420157130,1775735459707,-1390.992094,0.00015,2]
[420157131,1775735459717,-151.0,0.00015,2]
[420157132,1775735459726,-151.0,0.00015,2]
[420157133,1775735459735,-172.314368,0.00015,2]
[420157134,1775735459744,-192.515506,0.00015,2]
[420157135,1775735459754,-1390.992094,0.00015,2]
[420157136,1775735459763,-151.0,0.00015,2]
[420157137,1775735459772,-151.0,0.00015,2]
[420157138,1775735459781,-151.0,0.00015,2]
[420157139,1775735459790,-172.314368,0.00015,2]
[420157140,1775735459799,-151.0,0.00015,2]
[420157141,1775735459809,-156.984299,0.00015,2]
[420157142,1775735459818,-151.0,0.00015,2]
[420157143,1775735459827,-1684.84007,0.00015,2]
[420157144,1775735459837,-151.0,0.00015,2]
[420157145,1775735459846,-1684.84007,0.00015,2]
[420157146,1775735459855,-151.0,0.00015,2]
[420157147,1775735459865,-358.263461,0.00015,2]
[420157148,1775735459874,-1684.84007,0.00015,2]
[420157149,1775735459884,-151.0,0.00015,2]
[420157150,1775735459894,-358.263461,0.00015,2]
[420157151,1775735459904,-1684.84007,0.00015,2]
[420157152,1775735459914,-189.924946,0.00015,2]
[420157153,1775735459924,-151.0,0.00015,2]
[420157154,1775735459933,-358.263461,0.00015,2]
[420157155,1775735459943,-358.263461,0.00015,2]
[420157156,1775735459952,-151.0,0.00015,2]
[420157157,1775735459962,-2412.081982,0.00015,2]
[420157158,1775735459971,-180.85196,0.00015,2]
[420157159,1775735459980,-2412.081982,0.00015,2]
[420157160,1775735459989,-180.85196,0.00015,2]
[420157161,1775735459998,-2412.081982,0.00015,2]
[420157162,1775735460007,-180.85196,0.00015,2]
[420157163,1775735460018,-2412.081982,0.00015,2]
[420157164,1775735460027,-180.85196,0.00015,2]
[420157165,1775735460037,-1368.683849,0.00015,2]
[420157166,1775735460047,-214.760309,0.00015,2]
[420157167,1775735460057,-1368.683849,0.00015,2]
[420157168,1775735460067,-214.760309,0.00015,2]
[420157169,1775735460076,-1368.683849,0.00015,2]
[420157170,1775735460087,-214.760309,0.00015,2]
[420157171,1775735460097,-1368.683849,0.00015,2]
[420157172,1775735460107,-214.760309,0.00015,2]
[420157173,1775735460117,-235.029354,0.00015,2]
[420157174,1775735460127,-235.029354,0.00015,2]
[420157175,1775735460137,-235.029354,0.00015,2]
[420157176,1775735460147,-235.029354,0.00015,2]
[420157177,1775735460157,-1075.84427,0.00015,2]
[420157178,1775735460167,-1075.84427,0.00015,2]
[420157179,1775735460177,-1075.84427,0.00015,2]
[420157180,1775735460187,-1075.84427,0.00015,2]
[420157181,1775735460196,-151.0,0.00015,2]
[420157182,1775735460205,-151.0,0.00015,2]
[420157183,1775735460219,-2501.266401,0.00015,2]
[420157184,1775735460235,-2501.266401,0.00015,2]
[420157185,1775735460250,-557.766277,0.00015,2]
[420157186,1775735460263,-151.0,0.00015,2]
[420157187,1775735460279,-151.0,0.00015,2]
[420157188,1775735460293,-2501.266401,0.00015,2]
[420157189,1775735460308,-557.766277,0.00015,2]
[420157190,1775735460323,-151.0,0.00015,2]
[420157191,1775735460336,-2501.266401,0.00015,2]
[420157192,1775735460351,-344.108376,0.00015,2]
[420157193,1775735460364,-557.766277,0.00015,2]
[420157194,1775735460378,-151.0,0.00015,2]
[420157195,1775735460391,-151.0,0.00015,2]
[420157196,1775735460405,-714.675199,0.00015,2]
[420157197,1775735460416,-557.766277,0.00015,2]
[420157198,1775735460430,-344.108376,0.00015,2]
[420157199,1775735460443,-151.0,0.00015,2]
[420157200,1775735460458,-344.108376,0.00015,2]
[420157201,1775735460472,-714.675199,0.00015,2]
[420157202,1775735460487,-285.568603,0.00015,2]
[420157203,1775735460502,-344.108376,0.00015,2]
[420157204,1775735460517,-714.675199,0.00015,2]
[420157205,1775735460528,-500.0,0.00015033,2]
[420157206,1775735460539,-151.0,0.00015033,2]
[420157207,1775735460550,-371.427863,0.00015041,2]
[420157208,1775735460566,-371.427863,0.00015041,2]
[420157209,1775735460577,-371.427863,0.00015041,2]
[420157210,1775735460592,-151.0,0.00015041,2]
[420157211,1775735460606,-371.427863,0.00015041,2]
[420157212,1775735460619,-1293.90316,0.00015041,2]
[420157213,1775735460635,-151.0,0.00015041,2]
[420157214,1775735460646,-1293.90316,0.00015041,2]
[420157215,1775735460658,-1293.90316,0.00015041,2]
[420157216,1775735460670,-206.655348,0.00015041,2]
[420157217,1775735460683,-550.922457,0.00015041,2]
[420157218,1775735460695,-509.32745,0.00015041,2]
[420157219,1775735460708,-1293.90316,0.00015041,2]
[420157220,1775735460720,-206.655348,0.00015041,2]
[420157221,1775735460732,-550.922457,0.00015041,2]
[420157222,1775735460744,-509.32745,0.00015041,2]
[420157223,1775735460756,-151.0,0.00015041,2]
[420157224,1775735460770,-550.922457,0.00015041,2]
[420157225,1775735460782,-151.0,0.00015041,2]
[420157226,1775735460795,-509.32745,0.00015041,2]
[420157227,1775735460807,-206.655348,0.00015041,2]
[420157228,1775735460819,-151.0,0.00015041,2]
[420157229,1775735460832,-550.922457,0.00015041,2]
[420157230,1775735460844,-206.655348,0.00015041,2]
[420157231,1775735460857,-1223.280238,0.00015041,2]
[420157232,1775735460869,-509.32745,0.00015041,2]
[420157233,1775735460881,-1223.280238,0.00015041,2]
[420157234,1775735460893,-151.0,0.00015041,2]
[420157235,1775735460906,-151.0,0.00015041,2]
[420157236,1775735460918,-1223.280238,0.00015041,2]
[420157237,1775735460930,-638.564593,0.00015041,2]
[420157238,1775735460942,-151.0,0.00015041,2]
[420157239,1775735460954,-460.104724,0.00015041,2]
[420157240,1775735460966,-1223.280238,0.00015041,2]
[420157241,1775735460978,-638.564593,0.00015041,2]
[420157242,1775735460990,-151.0,0.00015041,2]
[420157243,1775735461003,-460.104724,0.00015041,2]
[420157244,1775735461016,-638.564593,0.00015041,2]
[420157245,1775735461028,-578.068022,0.00015041,2]
[420157246,1775735461041,-460.104724,0.00015041,2]
[420157247,1775735461053,-638.564593,0.00015041,2]
[420157248,1775735461066,-578.068022,0.00015041,2]
[420157249,1775735461078,-460.104724,0.00015041,2]
[420157250,1775735461089,-578.068022,0.00015041,2]
[420157251,1775735461101,-151.0,0.00015041,2]
[420157252,1775735461113,-578.068022,0.00015041,2]
[420157253,1775735461126,-151.0,0.00015041,2]
[420157254,1775735461137,-151.0,0.00015041,2]
[420157255,1775735461149,-428.509352,0.00015041,2]
[420157256,1775735461162,-428.509352,0.00015041,2]
[420157257,1775735461174,-428.509352,0.00015041,2]
[420157258,1775735461187,-428.509352,0.00015041,2]
[420157259,1775735461210,-151.0,0.00015041,2]
[420157260,1775735461222,-151.0,0.00015041,2]
[420157261,1775735461235,-151.0,0.00015041,2]
[420157262,1775735461248,-151.0,0.00015041,2]
[420157263,1775735461260,-151.0,0.00015041,2]
[420157264,1775735461272,-151.0,0.00015041,2]
[420157265,1775735461284,-378.316153,0.00015041,2]
[420157266,1775735461296,-854.312616,0.00015041,2]
[420157267,1775735461308,-378.316153,0.00015041,2]
[420157268,1775735461320,-680.274183,0.00015041,2]
[420157269,1775735461333,-378.316153,0.00015041,2]
[420157270,1775735461345,-854.312616,0.00015041,2]
[420157271,1775735461357,-680.274183,0.00015041,2]
[420157272,1775735461369,-378.316153,0.00015041,2]
[420157273,1775735461382,-854.312616,0.00015041,2]
[420157274,1775735461394,-680.274183,0.00015041,2]
[420157275,1775735461406,-1185.412147,0.00015041,2]
[420157276,1775735461419,-854.312616,0.00015041,2]
[420157277,1775735461432,-680.274183,0.00015041,2]
[420157278,1775735461444,-157.888769,0.00015041,2]
[420157279,1775735461457,-1185.412147,0.00015041,2]
[420157280,1775735461469,-151.0,0.00015041,2]
[420157281,1775735461482,-645.46557,0.00015041,2]
[420157282,1775735461494,-1185.412147,0.00015041,2]
[420157283,1775735461505,-157.888769,0.00015041,2]
[420157284,1775735461517,-645.46557,0.00015041,2]
[420157285,1775735461530,-1185.412147,0.00015041,2]
[420157286,1775735461542,-157.888769,0.00015041,2]
[420157287,1775735461554,-151.0,0.00015041,2]
[420157288,1775735461567,-1162.763235,0.00015041,2]
[420157289,1775735461580,-645.46557,0.00015041,2]
[420157290,1775735461592,-338.153046,0.00015041,2]
[420157291,1775735461604,-151.0,0.00015041,2]
[420157292,1775735461616,-157.888769,0.00015041,2]
[420157293,1775735461629,-1162.763235,0.00015041,2]
[420157294,1775735461641,-151.729075,0.00015041,2]
[420157295,1775735461652,-151.0,0.00015041,2]
[420157296,1775735461665,-645.46557,0.00015041,2]
[420157297,1775735461677,-248.188065,0.00015041,2]
[420157298,1775735461689,-338.153046,0.00015041,2]
[420157299,1775735461700,-1162.763235,0.00015041,2]
[420157300,1775735461712,-151.0,0.00015041,2]
[420157301,1775735461723,-984.45069,0.00015041,2]
[420157302,1775735461736,-248.188065,0.00015041,2]
[420157303,1775735461747,-338.153046,0.00015041,2]
[420157304,1775735461758,-2442.065258,0.00015041,2]
[420157305,1775735461770,-1162.763235,0.00015041,2]
[420157306,1775735461781,-1716.123877,0.00015041,2]
[420157307,1775735461793,-984.45069,0.00015041,2]
[420157308,1775735461805,-248.188065,0.00015041,2]
[420157309,1775735461817,-338.153046,0.00015041,2]
[420157310,1775735461828,-2442.065258,0.00015041,2]
[420157311,1775735461840,-151.0,0.00015041,2]
[420157312,1775735461852,-984.45069,0.00015041,2]
[420157313,1775735461864,-1716.123877,0.00015041,2]
[420157314,1775735461875,-248.188065,0.00015041,2]
[420157315,1775735461887,-2442.065258,0.00015041,2]
[420157316,1775735461898,-151.0,0.00015041,2]
[420157317,1775735461910,-984.45069,0.00015041,2]
[420157318,1775735461922,-1716.123877,0.00015041,2]
[420157319,1775735461935,-2442.065258,0.00015041,2]
[420157320,1775735461946,-151.0,0.00015041,2]
[420157321,1775735461959,-934.47175,0.00015041,2]
[420157322,1775735461971,-151.0,0.00015041,2]
[420157323,1775735461982,-1716.123877,0.00015041,2]
[420157324,1775735461995,-151.0,0.00015041,2]
[420157325,1775735462006,-859.514632,0.00015041,2]
[420157326,1775735462018,-934.47175,0.00015041,2]
[420157327,1775735462029,-251.746996,0.00015041,2]
[420157328,1775735462041,-335.411526,0.00015041,2]
[420157329,1775735462053,-859.514632,0.00015041,2]
[420157330,1775735462064,-151.762801,0.00015041,2]
[420157331,1775735462076,-934.47175,0.00015041,2]
[420157332,1775735462088,-335.411526,0.00015041,2]
[420157333,1775735462099,-859.514632,0.00015041,2]
[420157334,1775735462111,-151.0,0.00015041,2]
[420157335,1775735462123,-170.513675,0.00015041,2]
[420157336,1775735462134,-934.47175,0.00015041,2]
[420157337,1775735462146,-335.411526,0.00015041,2]
[420157338,1775735462158,-859.514632,0.00015041,2]
[420157339,1775735462169,-151.0,0.00015041,2]
[420157340,1775735462181,-170.513675,0.00015041,2]
[420157341,1775735462193,-335.411526,0.00015041,2]
[420157342,1775735462204,-170.513675,0.00015041,2]
[420157343,1775735462215,-151.0,0.00015041,2]
[420157344,1775735462227,-151.0,0.00015041,2]
[420157345,1775735462238,-170.513675,0.00015041,2]
[420157346,1775735462250,-151.0,0.00015041,2]
[420157347,1775735462262,-170.593914,0.00015041,2]
[420157348,1775735462273,-170.593914,0.00015041,2]
[420157349,1775735462285,-151.0,0.00015041,2]
[420157350,1775735462296,-170.593914,0.00015041,2]
[420157351,1775735462308,-170.593914,0.00015041,2]
[420157352,1775735462319,-165.728537,0.00015041,2]
[420157353,1775735462330,-165.728537,0.00015041,2]
[420157354,1775735462341,-178.765211,0.00015041,2]
[420157355,1775735462352,-178.765211,0.00015041,2]
[420157356,1775735462363,-165.728537,0.00015041,2]
[420157357,1775735462375,-178.765211,0.00015041,2]
[420157358,1775735462386,-165.728537,0.00015041,2]
[420157359,1775735462397,-178.765211,0.00015041,2]
[420157360,1775735462409,-228.366184,0.00015041,2]
[420157361,1775735462420,-228.366184,0.00015041,2]
[420157362,1775735462432,-171.867948,0.00015041,2]
[420157363,1775735462443,-228.366184,0.00015041,2]
[420157364,1775735462454,-171.867948,0.00015041,2]
[420157365,1775735462465,-228.366184,0.00015041,2]
[420157366,1775735462476,-26243.05274715,0.00015041,2]
[420157367,1775735462487,-500.0,0.00015055,2]
[420157368,1775735462499,-500.0,0.00015055,2]
[420157369,1775735462510,-500.0,0.00015055,2]
[420157370,1775735462522,-500.0,0.00015055,2]
[420157371,1775735462532,-500.0,0.00015055,2]
[420157372,1775735462543,-469.56366676,0.00015055,2]
[420157373,1775735462554,-500.0,0.00015055,2]
[420157374,1775735462565,-500.0,0.00015055,2]
[420157375,1775735462575,-568.28,0.00015055,2]
[420157376,1775735462587,-500.0,0.00015055,2]
[420157377,1775735462598,-502.06502755,0.00015055,2]
[420157378,1775735462610,-500.0,0.00015055,2]
[420157379,1775735462621,-500.0,0.00015055,2]
[420157380,1775735462632,-538.72,0.00015055,2]
[420157381,1775735462644,-986.05,0.00015068,2]
[420157382,1775735462655,-491.26,0.00015068,2]
[420157383,1775735462667,-1286.102119,0.00015068,2]
[420157384,1775735462678,-1286.102119,0.00015068,2]
[420157385,1775735462689,-1286.102119,0.00015068,2]
[420157386,1775735462701,-1286.102119,0.00015068,2]
[420157387,1775735462712,-1286.102119,0.00015068,2]
[420157388,1775735462723,-1286.102119,0.00015068,2]
[420157389,1775735462735,-1286.102119,0.00015068,2]
[420157390,1775735462747,-1286.102119,0.00015068,2]
[420157391,1775735462758,-258.37,0.00015072,2]
[420157392,1775735462773,-736.0,0.00015077,2]
[420157393,1775735462784,-503.0,0.00015077,3]
[420157394,1775735462796,-166.66,0.00015083,2]
[420157395,1775735462808,-500.0,0.00015088,2]
[420157396,1775735462819,-151.0,0.00015088,2]
[420157397,1775735462830,-500.0,0.00015128,2]
[420157398,1775735462841,-501.60436504,0.00015128,2]
[420157399,1775735462852,-500.0,0.00015128,2]
[420157400,1775735462863,-1000.0,0.00015128,2]
[420157401,1775735462874,-228.09,0.00015137,2]
[420157402,1775735462884,-500.0,0.00015143,2]
[420157403,1775735462896,-151.0,0.00015143,2]
[420157404,1775735462907,-151.0,0.00015146,2]
[420157405,1775735462918,-151.0,0.00015146,2]
[420157406,1775735462929,-151.0,0.00015146,2]
[420157407,1775735462941,-338.182105,0.00015146,2]
[420157408,1775735462952,-338.182105,0.00015146,2]
[420157409,1775735462963,-338.182105,0.00015146,2]
[420157410,1775735462974,-338.182105,0.00015146,2]
[420157411,1775735462984,-151.0,0.00015146,2]
[420157412,1775735462995,-151.0,0.00015146,2]
[420157413,1775735463007,-246.392819,0.00015146,2]
[420157414,1775735463018,-151.0,0.00015146,2]
[420157415,1775735463028,-246.392819,0.00015146,2]
[420157416,1775735463039,-883.192799,0.00015146,2]
[420157417,1775735463050,-246.392819,0.00015146,2]
[420157418,1775735463062,-883.192799,0.00015146,2]
[420157419,1775735463073,-151.0,0.00015146,2]
[420157420,1775735463084,-246.392819,0.00015146,2]
[420157421,1775735463096,-151.0,0.00015146,2]
[420157422,1775735463108,-883.192799,0.00015146,2]
[420157423,1775735463120,-151.0,0.00015146,2]
[420157424,1775735463132,-231.515776,0.00015146,2]
[420157425,1775735463144,-883.192799,0.00015146,2]
[420157426,1775735463155,-796.708716,0.00015146,2]
[420157427,1775735463165,-151.32066,0.00015146,2]
[420157428,1775735463176,-796.708716,0.00015146,2]
[420157429,1775735463188,-796.708716,0.00015146,2]
[420157430,1775735463199,-796.708716,0.00015146,2]
[420157431,1775735463211,-234.730307,0.00015146,2]
[420157432,1775735463222,-151.0,0.00015146,2]
[420157433,1775735463234,-234.730307,0.00015146,2]
[420157434,1775735463246,-234.730307,0.00015146,2]
[420157435,1775735463258,-234.730307,0.00015146,2]
[420157436,1775735463269,-151.0,0.00015146,2]
[420157437,1775735463281,-151.0,0.00015146,2]
[420157438,1775735463292,-151.0,0.00015146,2]
[420157439,1775735463304,-151.0,0.00015146,2]
[420157440,1775735463316,-324.491261,0.00015146,2]
[420157441,1775735463327,-324.491261,0.00015146,2]
[420157442,1775735463338,-324.491261,0.00015146,2]
[420157443,1775735463350,-324.491261,0.00015146,2]
[420157444,1775735463361,-160.341328,0.00015146,2]
[420157445,1775735463372,-160.341328,0.00015146,2]
[420157446,1775735463383,-160.341328,0.00015146,2]
[420157447,1775735463394,-160.341328,0.00015146,2]
[420157448,1775735463406,-592.138383,0.00015146,2]
[420157449,1775735463418,-592.138383,0.00015146,2]
[420157450,1775735463430,-592.138383,0.00015146,2]
[420157451,1775735463442,-592.138383,0.00015146,2]
[420157452,1775735463454,-168.0,0.00015156,2]
[420157453,1775735463467,-1400.0,0.00015162,2]
[420157454,1775735463478,-19760.81793985,0.00015164,2]
[420157455,1775735464666,-500.0,0.00015198,2]
[420157456,1775735464708,-151.0,0.00015198,2]
[420157457,1775735464751,-2526.43376,0.000152,2]
[420157458,1775735464765,-155.0,0.00015204,2]
[420157459,1775735464774,-500.0,0.00015253,2]
[420157460,1775735464784,-151.0,0.00015253,2]
[420157461,1775735464794,-350.0,0.00015261,2]
[420157462,1775735464804,-5217.24905487,0.00015283,2]
[420157463,1775735464814,-350.0,0.00015287,2]
[420157464,1775735464823,-1088.59228767,0.000153,2]
[420157465,1775735464833,-500.0,0.00015308,2]
[420157466,1775735464843,-151.0,0.00015308,2]
[420157467,1775735464852,-446.97140101,0.0001532,2]
[420157468,1775735464861,-289.15810346,0.0001532,2]
[420157469,1775735464871,-972.02969773,0.0001532,2]
[420157470,1775735464881,-1101.97998909,0.00015322,2]
[420157471,1775735464890,-985.45,0.00015342,2]
[420157472,1775735464900,-500.0,0.00015363,2]
[420157473,1775735464910,-151.0,0.00015363,2]
[420157474,1775735464919,-168.0,0.00015374,2]
[420157475,1775735464929,-1617.88435621,0.00015385,2]
[420157476,1775735464938,-168.0,0.00015389,2]
[420157477,1775735464947,-177.5618893,0.00015392,5]
[420157478,1775735464957,-2649.52285216,0.00015396,2]
[420157479,1775735464966,-3900.0,0.000154,5]
[420157480,1775735464976,-500.0,0.00015405,2]
[420157481,1775735464985,-2000.0,0.00015405,2]
[420157482,1775735464995,-151.0,0.0001541,2]
[420157483,1775735465005,-151.0,0.0001541,2]
[420157484,1775735465016,-151.0,0.0001541,2]
[420157485,1775735465027,-151.0,0.0001541,2]
[420157486,1775735465036,-151.0,0.0001541,2]
[420157487,1775735465046,-151.0,0.0001541,2]
[420157488,1775735465056,-151.0,0.0001541,2]
[420157489,1775735465066,-151.0,0.0001541,2]
[420157490,1775735465075,-151.0,0.0001541,2]
[420157491,1775735465085,-151.0,0.0001541,2]
[420157492,1775735465094,-185.827137,0.0001541,2]
[420157493,1775735465104,-185.827137,0.0001541,2]
[420157494,1775735465114,-185.827137,0.0001541,2]
[420157495,1775735465124,-185.827137,0.0001541,2]
[420157496,1775735465134,-151.0,0.0001541,2]
[420157497,1775735465143,-151.0,0.0001541,2]
[420157498,1775735465153,-151.0,0.0001541,2]
[420157499,1775735465163,-151.0,0.0001541,2]
[420157500,1775735465172,-159.385593,0.0001541,2]
[420157501,1775735465182,-151.0,0.0001541,2]
[420157502,1775735465191,-151.41120788,0.0001541,2]
[420157503,1775735465201,-200.0,0.00015416,2]
[420157504,1775735465211,-1235.18214925,0.00015416,2]
[420157505,1775735465221,-181.08010148,0.00015416,2]
[420157506,1775735465231,-771.01748645,0.00015416,2]
[420157507,1775735465242,-181.08010149,0.00015416,2]
[420157508,1775735465253,-710.08360837,0.00015416,2]
[420157509,1775735465263,-290.26104003,0.00015416,2]
[420157510,1775735465272,-151.0,0.00015416,2]
[420157511,1775735465282,-2501.266401,0.00015416,2]
[420157512,1775735465292,-2501.266401,0.00015416,2]
[420157513,1775735465302,-557.766277,0.00015416,2]
[420157514,1775735465311,-151.0,0.00015416,2]
[420157515,1775735465322,-152.522804,0.00015416,2]
[420157516,1775735465333,-2501.266401,0.00015416,2]
[420157517,1775735465343,-557.766277,0.00015416,2]
[420157518,1775735465354,-151.0,0.00015416,2]
[420157519,1775735465364,-2501.266401,0.00015416,2]
[420157520,1775735465374,-344.108376,0.00015416,2]
[420157521,1775735465384,-557.766277,0.00015416,2]
[420157522,1775735465394,-1286.102119,0.00015416,2]
[420157523,1775735465405,-151.0,0.00015416,2]
[420157524,1775735465415,-290.451503,0.00015416,2]
[420157525,1775735465425,-557.766277,0.00015416,2]
[420157526,1775735465435,-344.108376,0.00015416,2]
[420157527,1775735465444,-1286.102119,0.00015416,2]
[420157528,1775735465455,-714.675199,0.00015416,2]
[420157529,1775735465464,-151.0,0.00015416,2]
[420157530,1775735465475,-344.108376,0.00015416,2]
[420157531,1775735465486,-714.675199,0.00015416,2]